fUSD/lending_fUSD_20240425
["ID","MTS","AMOUNT","RATE_DAILY","PERIOD"]
[323540458,1714079448439,-500.0,0.00010958,2]
[323540459,1714079448449,-500.0,0.00010958,2]
[323540460,1714079448460,-1182.4,0.00010958,2]
[323540461,1714079448470,-500.0,0.00010958,2]
[323540462,1714079448482,-1060.67,0.00010958,2]
[323540463,1714079448493,-500.0,0.00010958,2]
[323540464,1714079448504,-1621.03,0.00010958,2]
[323540465,1714079448514,-2281.43,0.00010958,2]
[323540466,1714079448525,-616.545956,0.00010958,2]
[323540467,1714079448536,-500.0,0.00010958,2]
[323540468,1714079448545,-500.0,0.00010958,2]
[323540469,1714079448555,-1355.33,0.00010958,2]
[323540470,1714079448567,-1498.73,0.00010958,2]
[323540471,1714079448577,-500.0,0.00010958,2]
[323540472,1714079448588,-3049.32,0.00010958,2]
[323540473,1714079448597,-500.0,0.00010958,2]
[323540474,1714079448608,-791.36,0.00010958,2]
[323540475,1714079448620,-1099.83,0.00010958,2]
[323540476,1714079448630,-500.0,0.00010958,2]
[323540477,1714079448641,-500.0,0.00010958,2]
[323540478,1714079448651,-500.0,0.00010958,2]
[323540479,1714079448662,-500.0,0.00010958,2]
[323540480,1714079448672,-500.0,0.00010958,2]
[323540481,1714079448681,-500.0,0.00010958,2]
[323540482,1714079448692,-500.0,0.00010958,2]
[323540483,1714079448703,-500.0,0.00010958,2]
[323540484,1714079448713,-2357.14,0.00010958,2]
[323540485,1714079448723,-500.0,0.00010958,2]
[323540486,1714079448734,-833.9,0.00010958,2]
[323540487,1714079448746,-500.0,0.00010958,2]
[323540488,1714079448757,-500.0,0.00010958,2]
[323540489,1714079448767,-500.0,0.00010958,2]
[323540490,1714079448778,-500.0,0.00010958,2]
[323540491,1714079448788,-500.0,0.00010958,2]
[323540492,1714079448798,-500.0,0.00010958,2]
[323540493,1714079448808,-505.49344306,0.00010958,2]
[323540494,1714079448818,-500.0,0.00010958,2]
[323540495,1714079448828,-852.88,0.00010958,2]
[323540496,1714079448838,-500.0,0.00010958,2]
[323540497,1714079448847,-500.0,0.00010958,2]
[323540498,1714079448857,-500.0,0.00010958,2]
[323540499,1714079448867,-205.14758053,0.00010958,2]
[323540500,1714079448877,-1372.85,0.00010958,2]
[323540501,1714079448888,-500.0,0.00010958,2]
[323540502,1714079448898,-640.73,0.00010958,2]
[323540503,1714079448908,-500.0,0.00010958,2]
[323540504,1714079448918,-500.0,0.00010958,2]
[323540505,1714079448929,-502.94673927,0.00010958,2]
[323540506,1714079448939,-500.0,0.00010958,2]
[323540507,1714079448949,-500.0,0.00010958,2]
[323540508,1714079448959,-972.48,0.00010958,2]
[323540509,1714079448968,-759.26,0.00010958,2]
[323540510,1714079448978,-500.0,0.00010958,2]
[323540511,1714079448988,-500.0,0.00010958,2]
[323540512,1714079448997,-500.0,0.00010958,2]
[323540513,1714079449006,-500.0,0.00010958,2]
[323540514,1714079449015,-500.0,0.00010958,2]
[323540515,1714079449024,-500.0,0.00010958,2]
[323540516,1714079449034,-984.82,0.00010958,2]
[323540517,1714079449043,-500.0,0.00010958,2]
[323540518,1714079449052,-2723.41,0.00010958,2]
[323540519,1714079449062,-500.0,0.00010958,2]
[323540520,1714079449071,-500.0,0.00010958,2]
[323540521,1714079449081,-5700.22,0.00010958,2]
[323540522,1714079449090,-500.0,0.00010958,2]
[323540523,1714079449099,-1003.68,0.00010958,2]
[323540524,1714079449108,-1144.78,0.00010958,2]
[323540525,1714079449117,-1711.68,0.00010958,2]
[323540526,1714079449126,-500.0,0.00010958,2]
[323540527,1714079449135,-500.0,0.00010958,2]
[323540528,1714079449148,-500.0,0.00010958,2]
[323540529,1714079449157,-504.95385244,0.00010958,2]
[323540530,1714079449166,-500.0,0.00010958,2]
[323540531,1714079449175,-500.0,0.00010958,2]
[323540532,1714079449184,-448.86910571,0.00010958,2]
[323540533,1714079449194,-3553.91,0.00010958,2]
[323540534,1714079449204,-841.83,0.00010958,2]
[323540535,1714079449213,-500.0,0.00010958,2]
[323540536,1714079449224,-500.0,0.00010958,2]
[323540537,1714079449234,-566.50890074,0.00010958,2]
[323540538,1714079449243,-1532.05,0.00010958,2]
[323540539,1714079449252,-500.0,0.00010958,2]
[323540540,1714079449261,-500.0,0.00010958,2]
[323540541,1714079449270,-4466.15,0.00010958,2]
[323540542,1714079449279,-500.0,0.00010958,2]
[323540543,1714079449288,-4094.61,0.00010958,2]
[323540544,1714079449297,-6226.21,0.00010958,2]
[323540545,1714079449307,-941.66,0.00010958,2]
[323540546,1714079449317,-500.0,0.00010958,2]
[323540547,1714079449327,-500.0,0.00010958,2]
[323540548,1714079449336,-500.0,0.00010958,2]
[323540549,1714079449345,-500.0,0.00010958,2]
[323540550,1714079449354,-500.0,0.00010958,2]
[323540551,1714079449364,-723.29,0.00010958,2]
[323540552,1714079449373,-500.0,0.00010958,2]
[323540553,1714079449382,-500.0,0.00010958,2]
[323540554,1714079449391,-500.0,0.00010958,2]
[323540555,1714079449400,-500.0,0.00010958,2]
[323540556,1714079449409,-500.0,0.00010958,2]
[323540557,1714079449419,-500.0,0.00010958,2]
[323540558,1714079449429,-500.0,0.00010958,2]
[323540559,1714079449439,-543.78913507,0.00010958,2]
[323540560,1714079449450,-931.65,0.00010958,2]
[323540561,1714079449462,-1405.65,0.00010958,2]
[323540562,1714079449473,-1351.72,0.00010958,2]
[323540563,1714079449482,-500.0,0.00010958,2]
[323540564,1714079449492,-585.14,0.00010958,2]
[323540565,1714079449502,-500.0,0.00010958,2]
[323540566,1714079449513,-500.0,0.00010958,2]
[323540567,1714079449522,-528.9,0.00010958,2]
[323540568,1714079449532,-4293.85,0.00010958,2]
[323540569,1714079449541,-500.0,0.00010958,2]
[323540570,1714079449551,-1262.4,0.00010958,2]
[323540571,1714079449561,-565.34977281,0.00010958,2]
[323540572,1714079449570,-1364.78,0.00010958,2]
[323540573,1714079449579,-1255.4,0.00010958,2]
[323540574,1714079449588,-500.27743837,0.00010958,2]
[323540575,1714079449597,-4221.53,0.00010958,2]
[323540576,1714079449607,-500.0,0.00010958,2]
[323540577,1714079449616,-1030.13,0.00010958,2]
[323540578,1714079449625,-500.0,0.00010958,2]
[323540579,1714079449634,-770.54,0.00010958,2]
[323540580,1714079449642,-1373.97,0.00010958,2]
[323540581,1714079449651,-500.58164907,0.00010958,2]
[323540582,1714079449660,-500.0,0.00010958,2]
[323540583,1714079449669,-500.0,0.00010958,2]
[323540584,1714079449677,-504.44998,0.00010958,2]
[323540585,1714079449686,-500.0,0.00010958,2]
[323540586,1714079449695,-500.0,0.00010958,2]
[323540587,1714079449704,-500.0,0.00010958,2]
[323540588,1714079449714,-500.0,0.00010958,2]
[323540589,1714079449723,-500.0,0.00010958,2]
[323540590,1714079449732,-508.4744627,0.00010958,2]
[323540591,1714079449742,-580.79,0.00010958,2]
[323540592,1714079449751,-500.0,0.00010958,2]
[323540593,1714079449761,-639.2455441,0.00010958,2]
[323540594,1714079449770,-503.89755818,0.00010958,2]
[323540595,1714079449779,-832.8,0.00010958,2]
[323540596,1714079449788,-500.85893689,0.00010958,2]
[323540597,1714079449797,-1430.02,0.00010958,2]
[323540598,1714079449806,-500.0,0.00010958,2]
[323540599,1714079449818,-500.0,0.00010958,2]
[323540600,1714079449827,-1606.92,0.00010958,2]
[323540601,1714079449837,-500.0,0.00010958,2]
[323540602,1714079449846,-500.0,0.00010958,2]
[323540603,1714079449856,-500.0,0.00010958,2]
[323540604,1714079449865,-500.0,0.00010958,2]
[323540605,1714079449874,-521.84,0.00010958,2]
[323540606,1714079449884,-500.0,0.00010958,2]
[323540607,1714079449893,-500.0,0.00010958,2]
[323540608,1714079449902,-500.0,0.00010958,2]
[323540609,1714079449911,-500.0,0.00010958,2]
[323540610,1714079449920,-1426.71,0.00010958,2]
[323540611,1714079449930,-500.0,0.00010958,2]
[323540612,1714079449939,-850.34,0.00010958,2]
[323540613,1714079449948,-500.0,0.00010958,2]
[323540614,1714079449957,-196.44256937,0.00010958,2]
[323540615,1714079449966,-500.0,0.00010958,2]
[323540616,1714079449976,-2021.5,0.00010958,2]
[323540617,1714079449985,-500.0,0.00010958,2]
[323540618,1714079449994,-500.14378022,0.00010958,2]
[323540619,1714079450004,-2499.55,0.00010958,2]
[323540620,1714079450013,-500.0,0.00010958,2]
[323540621,1714079450023,-428.26904794,0.00010958,2]
[323540622,1714079450032,-2660.73,0.00010958,2]
[323540623,1714079450041,-793.34,0.00010958,2]
[323540624,1714079450050,-500.0,0.00010958,2]
[323540625,1714079450059,-500.0,0.00010958,2]
[323540626,1714079450071,-501.96123762,0.00010958,2]
[323540627,1714079450080,-609.21,0.00010958,2]
[323540628,1714079450090,-500.0,0.00010958,2]
[323540629,1714079450099,-500.0,0.00010958,2]
[323540630,1714079450108,-500.0,0.00010958,2]
[323540631,1714079450118,-678.64,0.00010958,2]
[323540632,1714079450127,-691.29,0.00010958,2]
[323540633,1714079450137,-3547.14,0.00010958,2]
[323540634,1714079450150,-1077.99,0.00010958,2]
[323540635,1714079450160,-500.0,0.00010958,2]
[323540636,1714079450170,-500.0,0.00010958,2]
[323540637,1714079450180,-1503.27,0.00010958,2]
[323540638,1714079450190,-2953.99,0.00010958,2]
[323540639,1714079450199,-500.0,0.00010958,2]
[323540640,1714079450209,-500.0,0.00010958,2]
[323540641,1714079450219,-500.0,0.00010958,2]
[323540642,1714079450228,-500.0,0.00010958,2]
[323540643,1714079450237,-500.0,0.00010958,2]
[323540644,1714079450246,-2293.86,0.00010958,2]
[323540645,1714079450255,-4231.07,0.00010958,2]
[323540646,1714079450265,-745.48,0.00010958,2]
[323540647,1714079450274,-1881.77,0.00010958,2]
[323540648,1714079450283,-500.56456721,0.00010958,2]
[323540649,1714079450292,-594.71,0.00010958,2]
[323540650,1714079450302,-5108.11,0.00010958,2]
[323540651,1714079450311,-500.0,0.00010958,2]
[323540652,1714079450322,-346.26841891,0.00010958,2]
[323540653,1714079450331,-1261.69,0.00010958,2]
[323540654,1714079450341,-500.0,0.00010958,2]
[323540655,1714079450351,-500.0,0.00010958,2]
[323540656,1714079450361,-4174.07,0.00010958,2]
[323540657,1714079450371,-500.0,0.00010958,2]
[323540658,1714079450381,-500.0,0.00010958,2]
[323540659,1714079450390,-500.0,0.00010958,2]
[323540660,1714079450400,-581.79,0.00010958,2]
[323540661,1714079450410,-500.0,0.00010958,2]
[323540662,1714079450420,-1135.57,0.00010958,2]
[323540663,1714079450429,-1617.84,0.00010958,2]
[323540664,1714079450439,-1982.29,0.00010958,2]
[323540665,1714079450448,-1332.35,0.00010958,2]
[323540666,1714079450458,-500.0,0.00010958,2]
[323540667,1714079450467,-500.0,0.00010958,2]
[323540668,1714079450477,-1456.8,0.00010958,2]
[323540669,1714079450486,-500.0,0.00010958,2]
[323540670,1714079450495,-1820.15,0.00010958,2]
[323540671,1714079450506,-753.84,0.00010958,2]
[323540672,1714079450516,-538.94,0.00010958,2]
[323540673,1714079450525,-500.0,0.00010958,2]
[323540674,1714079450534,-500.0,0.00010958,2]
[323540675,1714079450544,-500.0,0.00010958,2]
[323540676,1714079450553,-500.0,0.00010958,2]
[323540677,1714079450563,-3053.45,0.00010958,2]
[323540678,1714079450576,-472.3308992,0.00010958,2]
[323540679,1714079450585,-500.0,0.00010958,2]
[323540680,1714079450596,-500.0,0.00010958,2]
[323540681,1714079450605,-500.0,0.00010958,2]
[323540682,1714079450614,-500.0,0.00010958,2]
[323540683,1714079450622,-259.65872022,0.00010958,2]
[323540684,1714079450631,-500.0,0.00010958,2]
[323540685,1714079450640,-500.0,0.00010958,2]
[323540686,1714079450649,-500.0,0.00010958,2]
[323540687,1714079450659,-500.0,0.00010958,2]
[323540688,1714079450669,-500.0,0.00010958,2]
[323540689,1714079450679,-500.0,0.00010958,2]
[323540690,1714079450689,-10000.0,0.00010959,2]
[323540691,1714079450697,-2000.0,0.00010959,3]
[323540692,1714079450707,-150.0,0.00010959,2]
[323540693,1714079450717,-2297.4,0.00010959,2]
[323540694,1714079450726,-568.34625084,0.00010995,2]
[323540695,1714079450735,-749.63590295,0.00011,2]
[323540696,1714079450744,-1284.26822,0.00011,2]
[323540697,1714079450753,-731.33095273,0.00011,2]
[323540698,1714079450762,-500.0,0.00011028,2]
[323540699,1714079450772,-12297.60155568,0.00011032,2]
[323540700,1714079450781,-500.0,0.00011128,2]
[323540701,1714079450790,-568.34625084,0.00011132,2]
[323540702,1714079450800,-7640.93916377,0.00011189,7]
[323540703,1714079450809,-3164.50993962,0.00011189,2]
[323540704,1714079450820,-731.33095273,0.00011222,2]
[323540705,1714079450829,-500.0,0.00011231,2]
[323540706,1714079450838,-564.0,0.00011232,2]
[323540707,1714079450847,-500.0,0.00011232,2]
[323540708,1714079450857,-500.0,0.00011232,2]
[323540709,1714079450866,-500.0,0.00011232,2]
[323540710,1714079450875,-500.0,0.00011232,2]
[323540711,1714079450884,-500.0,0.00011232,2]
[323540712,1714079450894,-500.0,0.00011232,2]
[323540713,1714079450903,-500.0,0.00011232,2]
[323540714,1714079450912,-496.63,0.00011232,2]
[323540715,1714079450921,-500.0,0.00011232,2]
[323540716,1714079450930,-500.0,0.00011232,2]
[323540717,1714079450939,-500.0,0.00011232,2]
[323540718,1714079450948,-500.0,0.00011232,2]
[323540719,1714079450957,-500.0,0.00011232,2]
[323540720,1714079450966,-500.0,0.00011232,2]
[323540721,1714079450975,-1398.04,0.00011232,2]
[323540722,1714079450984,-500.0,0.00011232,2]
[323540723,1714079450993,-500.0,0.00011232,2]
[323540724,1714079451002,-500.0,0.00011232,2]
[323540725,1714079451012,-585.12,0.00011232,2]
[323540726,1714079451021,-500.0,0.00011232,2]
[323540727,1714079451030,-500.0,0.00011232,2]
[323540728,1714079451039,-341.14392625,0.00011232,2]
[323540729,1714079451048,-500.0,0.00011232,2]
[323540730,1714079451057,-500.0,0.00011232,2]
[323540731,1714079451067,-500.0,0.00011232,2]
[323540732,1714079451076,-500.0,0.00011232,2]
[323540733,1714079451086,-1278.48,0.00011232,2]
[323540734,1714079451096,-761.17,0.00011232,2]
[323540735,1714079451105,-500.0,0.00011232,2]
[323540736,1714079451114,-500.0,0.00011232,2]
[323540737,1714079451123,-1268.92,0.00011232,2]
[323540738,1714079451133,-500.0,0.00011232,2]
[323540739,1714079451143,-1357.63,0.00011232,2]
[323540740,1714079451153,-505.09802576,0.00011232,2]
[323540741,1714079451162,-500.0,0.00011232,2]
[323540742,1714079451170,-500.0,0.00011232,2]
[323540743,1714079451180,-500.0,0.00011232,2]
[323540744,1714079451190,-500.0,0.00011232,2]
[323540745,1714079451199,-500.0,0.00011232,2]
[323540746,1714079451209,-515.12858149,0.00011232,2]
[323540747,1714079451219,-1410.16,0.00011232,2]
[323540748,1714079451228,-1466.15,0.00011232,2]
[323540749,1714079451237,-507.91616751,0.00011232,2]
[323540750,1714079451246,-500.0,0.00011232,2]
[323540751,1714079451255,-500.0,0.00011232,2]
[323540752,1714079451264,-476.9,0.00011232,2]
[323540753,1714079451273,-508.67616554,0.00011232,2]
[323540754,1714079451283,-507.61290045,0.00011232,2]
[323540755,1714079451292,-500.0,0.00011232,2]
[323540756,1714079451301,-500.0,0.00011232,2]
[323540757,1714079451311,-500.0,0.00011232,2]
[323540758,1714079451322,-516.18293101,0.00011232,2]
[323540759,1714079451331,-1467.18,0.00011232,2]
[323540760,1714079451341,-1296.06,0.00011232,2]
[323540761,1714079451350,-500.0,0.00011232,2]
[323540762,1714079451360,-510.24,0.00011232,2]
[323540763,1714079451369,-505.03325156,0.00011232,2]
[323540764,1714079451378,-500.0,0.00011232,2]
[323540765,1714079451554,-510.88,0.00011232,2]
[323540766,1714079451565,-500.0,0.00011232,2]
[323540767,1714079451575,-500.0,0.00011232,2]
[323540768,1714079451584,-500.0,0.00011232,2]
[323540769,1714079451593,-505.63893658,0.00011232,2]
[323540770,1714079451602,-500.0,0.00011232,2]
[323540771,1714079451612,-617.31,0.00011232,2]
[323540772,1714079451621,-500.0,0.00011232,2]
[323540773,1714079451630,-500.0,0.00011232,2]
[323540774,1714079451640,-500.0,0.00011232,2]
[323540775,1714079451650,-641.87,0.00011232,2]
[323540776,1714079451659,-500.0,0.00011232,2]
[323540777,1714079451669,-500.0,0.00011232,2]
[323540778,1714079451678,-500.0,0.00011232,2]
[323540779,1714079451687,-500.0,0.00011232,2]
[323540780,1714079451696,-500.0,0.00011232,2]
[323540781,1714079451706,-500.0,0.00011232,2]
[323540782,1714079451716,-775.61,0.00011232,2]
[323540783,1714079451726,-500.0,0.00011232,2]
[323540784,1714079451735,-500.0,0.00011232,2]
[323540785,1714079451745,-500.0,0.00011232,2]
[323540786,1714079451754,-500.0,0.00011232,2]
[323540787,1714079451763,-500.0,0.00011232,2]
[323540788,1714079451772,-500.0,0.00011232,2]
[323540789,1714079451782,-500.0,0.00011232,2]
[323540790,1714079451791,-500.0,0.00011232,2]
[323540791,1714079451801,-500.0,0.00011232,2]
[323540792,1714079451811,-283.38571991,0.00011232,2]
[323540793,1714079451821,-500.0,0.00011232,2]
[323540794,1714079451830,-500.0,0.00011232,2]
[323540795,1714079451839,-532.05,0.00011232,2]
[323540796,1714079451849,-500.0,0.00011232,2]
[323540797,1714079451859,-500.0,0.00011232,2]
[323540798,1714079451868,-502.79759738,0.00011232,2]
[323540799,1714079451878,-1373.79,0.00011232,2]
[323540800,1714079451887,-502.57922202,0.00011232,2]
[323540801,1714079451896,-553.27438667,0.00011232,2]
[323540802,1714079451904,-1380.23,0.00011232,2]
[323540803,1714079451914,-500.0,0.00011232,2]
[323540804,1714079451924,-500.0,0.00011232,2]
[323540805,1714079451934,-719.44,0.00011232,2]
[323540806,1714079451944,-500.0,0.00011232,2]
[323540807,1714079451954,-500.0,0.00011232,2]
[323540808,1714079451964,-500.0,0.00011232,2]
[323540809,1714079451975,-500.0,0.00011232,2]
[323540810,1714079451985,-1256.85,0.00011232,2]
[323540811,1714079451995,-604.43398502,0.00011232,2]
[323540812,1714079452004,-500.0,0.00011232,2]
[323540813,1714079452013,-629.19,0.00011232,2]
[323540814,1714079452022,-500.0,0.00011232,2]
[323540815,1714079452032,-500.0,0.00011232,2]
[323540816,1714079452041,-500.0,0.00011232,2]
[323540817,1714079452050,-484.99650723,0.00011232,2]
[323540818,1714079452059,-500.0,0.00011232,2]
[323540819,1714079452069,-1715.23,0.00011232,2]
[323540820,1714079452078,-500.0,0.00011232,2]
[323540821,1714079452088,-655.56,0.00011232,2]
[323540822,1714079452098,-386.53446491,0.00011232,2]
[323540823,1714079452107,-500.0,0.00011232,2]
[323540824,1714079452116,-500.0,0.00011232,2]
[323540825,1714079452126,-500.0,0.00011232,2]
[323540826,1714079452136,-500.0,0.00011232,2]
[323540827,1714079452148,-500.0,0.00011232,2]
[323540828,1714079452157,-500.0,0.00011232,2]
[323540829,1714079452168,-664.9,0.00011232,2]
[323540830,1714079452177,-500.0,0.00011232,2]
[323540831,1714079452186,-500.0,0.00011232,2]
[323540832,1714079452196,-500.0,0.00011232,2]
[323540833,1714079452206,-1485.15,0.00011232,2]
[323540834,1714079452216,-500.0,0.00011232,2]
[323540835,1714079452228,-500.0,0.00011232,2]
[323540836,1714079452238,-500.0,0.00011232,2]
[323540837,1714079452248,-500.0,0.00011232,2]
[323540838,1714079452259,-299.83216967,0.00011232,2]
[323540839,1714079452269,-572.42,0.00011232,2]
[323540840,1714079452279,-500.0,0.00011232,2]
[323540841,1714079452289,-500.0,0.00011232,2]
[323540842,1714079452300,-500.0,0.00011232,2]
[323540843,1714079452311,-906.84,0.00011232,2]
[323540844,1714079452324,-500.0,0.00011232,2]
[323540845,1714079452335,-500.0,0.00011232,2]
[323540846,1714079452344,-500.0,0.00011232,2]
[323540847,1714079452354,-507.96348965,0.00011232,2]
[323540848,1714079452365,-500.0,0.00011232,2]
[323540849,1714079452376,-500.0,0.00011232,2]
[323540850,1714079452385,-500.0,0.00011232,2]
[323540851,1714079452394,-544.06,0.00011232,2]
[323540852,1714079452403,-471.06,0.00011232,2]
[323540853,1714079452412,-500.0,0.00011232,2]
[323540854,1714079452423,-500.0,0.00011232,2]
[323540855,1714079452433,-503.24213466,0.00011232,2]
[323540856,1714079452444,-273.67176064,0.00011232,2]
[323540857,1714079452455,-500.0,0.00011232,2]
[323540858,1714079452466,-500.0,0.00011232,2]
[323540859,1714079452476,-500.0,0.00011232,2]
[323540860,1714079452486,-500.0,0.00011232,2]
[323540861,1714079452496,-504.97083452,0.00011232,2]
[323540862,1714079452506,-340.07,0.00011232,2]
[323540863,1714079452515,-259.37872882,0.00011232,2]
[323540864,1714079452524,-500.0,0.00011232,2]
[323540865,1714079452533,-500.0,0.00011232,2]
[323540866,1714079452543,-501.57353262,0.00011232,2]
[323540867,1714079452552,-500.0,0.00011232,2]
[323540868,1714079452562,-500.0,0.00011232,2]
[323540869,1714079452573,-500.0,0.00011232,2]
[323540870,1714079452583,-500.0,0.00011232,2]
[323540871,1714079452592,-526.03623409,0.00011232,2]
[323540872,1714079452601,-500.0,0.00011232,2]
[323540873,1714079452610,-500.0,0.00011232,2]
[323540874,1714079452619,-500.0,0.00011232,2]
[323540875,1714079452627,-503.23846258,0.00011232,2]
[323540876,1714079452636,-500.0,0.00011232,2]
[323540877,1714079452646,-500.0,0.00011232,2]
[323540878,1714079452655,-507.59429886,0.00011232,2]
[323540879,1714079452665,-500.0,0.00011232,2]
[323540880,1714079452674,-500.0,0.00011232,2]
[323540881,1714079452683,-500.0,0.00011232,2]
[323540882,1714079452692,-500.0,0.00011232,2]
[323540883,1714079452701,-500.0,0.00011232,2]
[323540884,1714079452712,-500.0,0.00011232,2]
[323540885,1714079452722,-500.0,0.00011232,2]
[323540886,1714079452731,-500.0,0.00011232,2]
[323540887,1714079452740,-678.55,0.00011232,2]
[323540888,1714079452749,-500.0,0.00011232,2]
[323540889,1714079452759,-500.0,0.00011232,2]
[323540890,1714079452769,-500.0,0.00011232,2]
[323540891,1714079452778,-500.0,0.00011232,2]
[323540892,1714079452787,-500.0,0.00011232,2]
[323540893,1714079452797,-500.0,0.00011232,2]
[323540894,1714079452806,-500.0,0.00011232,2]
[323540895,1714079452815,-500.0,0.00011232,2]
[323540896,1714079452825,-500.0,0.00011232,2]
[323540897,1714079452834,-500.0,0.00011232,2]
[323540898,1714079452843,-500.0,0.00011232,2]
[323540899,1714079452854,-500.0,0.00011232,2]
[323540900,1714079452864,-500.0,0.00011232,2]
[323540901,1714079452873,-500.0,0.00011232,2]
[323540902,1714079452882,-500.0,0.00011232,2]
[323540903,1714079452891,-500.0,0.00011232,2]
[323540904,1714079452901,-500.0,0.00011232,2]
[323540905,1714079452910,-500.0,0.00011232,2]
[323540906,1714079452920,-500.0,0.00011232,2]
[323540907,1714079452930,-1038.85944406,0.00011232,2]
[323540908,1714079452939,-500.0,0.00011232,2]
[323540909,1714079452949,-500.0,0.00011232,2]
[323540910,1714079452958,-500.0,0.00011232,2]
[323540911,1714079452967,-1317.02,0.00011232,2]
[323540912,1714079452977,-500.0,0.00011232,2]
[323540913,1714079452986,-563.48753917,0.00011232,2]
[323540914,1714079452996,-500.0,0.00011232,2]
[323540915,1714079453005,-500.0,0.00011232,2]
[323540916,1714079453015,-500.0,0.00011232,2]
[323540917,1714079453024,-502.72358096,0.00011232,2]
[323540918,1714079453034,-500.0,0.00011232,2]
[323540919,1714079453043,-500.0,0.00011232,2]
[323540920,1714079453052,-500.0,0.00011232,2]
[323540921,1714079453062,-506.41005811,0.00011232,2]
[323540922,1714079453073,-500.0,0.00011232,2]
[323540923,1714079453083,-571.49,0.00011232,2]
[323540924,1714079453092,-500.0,0.00011232,2]
[323540925,1714079453101,-500.0,0.00011232,2]
[323540926,1714079453111,-500.0,0.00011232,2]
[323540927,1714079453121,-255.91735363,0.00011232,2]
[323540928,1714079453130,-506.31406062,0.00011232,2]
[323540929,1714079453140,-500.0,0.00011232,2]
[323540930,1714079453152,-500.0,0.00011232,2]
[323540931,1714079453161,-500.0,0.00011232,2]
[323540932,1714079453171,-565.14449985,0.00011232,2]
[323540933,1714079453180,-500.0,0.00011232,2]
[323540934,1714079453190,-500.0,0.00011232,2]
[323540935,1714079453199,-500.0,0.00011232,2]
[323540936,1714079453208,-500.0,0.00011232,2]
[323540937,1714079453218,-500.0,0.00011232,2]
[323540938,1714079453228,-500.0,0.00011232,2]
[323540939,1714079453238,-500.0,0.00011232,2]
[323540940,1714079453247,-500.0,0.00011232,2]
[323540941,1714079453258,-500.0,0.00011232,2]
[323540942,1714079453268,-500.0,0.00011232,2]
[323540943,1714079453277,-511.14018939,0.00011232,2]
[323540944,1714079453286,-500.0,0.00011232,2]
[323540945,1714079453296,-500.0,0.00011232,2]
[323540946,1714079453305,-500.91233464,0.00011232,2]
[323540947,1714079453315,-500.0,0.00011232,2]
[323540948,1714079453325,-616.14,0.00011232,2]
[323540949,1714079453334,-500.0,0.00011232,2]
[323540950,1714079453343,-1547.94,0.00011232,2]
[323540951,1714079453352,-500.0,0.00011232,2]
[323540952,1714079453362,-500.0,0.00011232,2]
[323540953,1714079453371,-500.0,0.00011232,2]
[323540954,1714079453380,-150.0,0.00011232,2]
[323540955,1714079453390,-500.0,0.00011232,2]
[323540956,1714079453399,-500.0,0.00011232,2]
[323540957,1714079453409,-500.0,0.00011232,2]